fUSD/lending_fUSD_20250113
["ID","MTS","AMOUNT","RATE_DAILY","PERIOD"]
[348847499,1736806238420,-500.0,9.897e-05,2]
[348847500,1736806238430,-500.0,9.897e-05,2]
[348847501,1736806238439,-500.0,9.897e-05,2]
[348847502,1736806238448,-500.0,9.897e-05,2]
[348847503,1736806238459,-500.0,9.897e-05,2]
[348847504,1736806238469,-500.0,9.897e-05,2]
[348847505,1736806238479,-500.0,9.897e-05,2]
[348847506,1736806238488,-500.0,9.897e-05,2]
[348847507,1736806238498,-500.0,9.897e-05,2]
[348847508,1736806238507,-500.0,9.897e-05,2]
[348847509,1736806238516,-500.0,9.897e-05,2]
[348847511,1736806238526,-500.0,9.897e-05,2]
[348847513,1736806238536,-500.0,9.897e-05,2]
[348847515,1736806238545,-500.0,9.897e-05,2]
[348847517,1736806238555,-500.0,9.897e-05,2]
[348847518,1736806238565,-500.0,9.897e-05,2]
[348847519,1736806238574,-500.0,9.897e-05,2]
[348847520,1736806238584,-500.0,9.897e-05,2]
[348847521,1736806238594,-300.0,9.897e-05,2]
[348847522,1736806238604,-500.0,9.897e-05,2]
[348847523,1736806238614,-500.0,9.897e-05,2]
[348847525,1736806238624,-500.0,9.897e-05,2]
[348847526,1736806238633,-500.0,9.897e-05,2]
[348847527,1736806238643,-500.06978148,9.897e-05,2]
[348847528,1736806238653,-500.0,9.897e-05,2]
[348847529,1736806238663,-500.0,9.897e-05,2]
[348847531,1736806238673,-500.0,9.897e-05,2]
[348847533,1736806238682,-500.0,9.897e-05,2]
[348847534,1736806238692,-500.0,9.897e-05,2]
[348847535,1736806238701,-500.0,9.897e-05,2]
[348847536,1736806238710,-500.0,9.897e-05,2]
[348847537,1736806238719,-500.0,9.897e-05,2]
[348847538,1736806238729,-500.0,9.897e-05,2]
[348847539,1736806238739,-500.0,9.897e-05,2]
[348847540,1736806238748,-500.0,9.897e-05,2]
[348847541,1736806238758,-500.0,9.897e-05,2]
[348847542,1736806238768,-500.0,9.897e-05,2]
[348847543,1736806238778,-500.0,9.897e-05,2]
[348847544,1736806238787,-500.0,9.897e-05,2]
[348847545,1736806238797,-500.0,9.897e-05,2]
[348847546,1736806238806,-500.0,9.897e-05,2]
[348847547,1736806238815,-500.0,9.897e-05,2]
[348847548,1736806238825,-500.0,9.897e-05,2]
[348847549,1736806238834,-500.0,9.897e-05,2]
[348847550,1736806238843,-500.0,9.897e-05,2]
[348847551,1736806238854,-500.0,9.897e-05,2]
[348847552,1736806238863,-500.0,9.897e-05,2]
[348847553,1736806238873,-500.0,9.897e-05,2]
[348847554,1736806238883,-500.0,9.897e-05,2]
[348847555,1736806238893,-500.0,9.897e-05,2]
[348847556,1736806238903,-500.0,9.897e-05,2]
[348847557,1736806238913,-500.0,9.897e-05,2]
[348847558,1736806238923,-500.0,9.897e-05,2]
[348847559,1736806238932,-500.0,9.897e-05,2]
[348847560,1736806238941,-500.0,9.897e-05,2]
[348847561,1736806239128,-500.0,9.897e-05,2]
[348847562,1736806239139,-500.0,9.897e-05,2]
[348847563,1736806239149,-500.0,9.897e-05,2]
[348847564,1736806239159,-500.0,9.897e-05,2]
[348847565,1736806239168,-500.0,9.897e-05,2]
[348847566,1736806239178,-500.0,9.897e-05,2]
[348847567,1736806239187,-500.0,9.897e-05,2]
[348847568,1736806239196,-500.0,9.897e-05,2]
[348847569,1736806239206,-500.0,9.897e-05,2]
[348847570,1736806239216,-500.0,9.897e-05,2]
[348847571,1736806239225,-500.0,9.897e-05,2]
[348847572,1736806239234,-500.0,9.897e-05,2]
[348847573,1736806239244,-185.21975647,9.897e-05,2]
[348847574,1736806239253,-500.0,9.897e-05,2]
[348847575,1736806239262,-500.0,9.897e-05,2]
[348847576,1736806239272,-500.0,9.897e-05,2]
[348847577,1736806239281,-500.0,9.897e-05,2]
[348847578,1736806239291,-500.0,9.897e-05,2]
[348847579,1736806239300,-500.0,9.897e-05,2]
[348847580,1736806239310,-500.0,9.897e-05,2]
[348847581,1736806239320,-500.0,9.897e-05,2]
[348847582,1736806239329,-500.0,9.897e-05,2]
[348847583,1736806239338,-500.0,9.897e-05,2]
[348847584,1736806239348,-500.0,9.897e-05,2]
[348847585,1736806239357,-500.0,9.897e-05,2]
[348847586,1736806239366,-500.0,9.897e-05,2]
[348847587,1736806239377,-500.0,9.897e-05,2]
[348847588,1736806239389,-500.0,9.897e-05,2]
[348847589,1736806239398,-500.0,9.897e-05,2]
[348847590,1736806239412,-500.0,9.897e-05,2]
[348847591,1736806239422,-500.0,9.897e-05,2]
[348847592,1736806239433,-500.0,9.897e-05,2]
[348847593,1736806239442,-500.0,9.897e-05,2]
[348847594,1736806239451,-500.0,9.897e-05,2]
[348847595,1736806239462,-500.0,9.897e-05,2]
[348847596,1736806239471,-500.0,9.897e-05,2]
[348847597,1736806239481,-500.0,9.897e-05,2]
[348847598,1736806239491,-500.0,9.897e-05,2]
[348847599,1736806239500,-500.0,9.897e-05,2]
[348847600,1736806239510,-500.0,9.897e-05,2]
[348847601,1736806239519,-500.0,9.897e-05,2]
[348847602,1736806239528,-500.0,9.897e-05,2]
[348847603,1736806239538,-500.0,9.897e-05,2]
[348847604,1736806239547,-500.0,9.897e-05,2]
[348847605,1736806239556,-500.0,9.897e-05,2]
[348847606,1736806239566,-500.0,9.897e-05,2]
[348847607,1736806239575,-500.0,9.897e-05,2]
[348847608,1736806239585,-500.0,9.897e-05,2]
[348847609,1736806239594,-500.0,9.897e-05,2]
[348847610,1736806239603,-500.0,9.897e-05,2]
[348847611,1736806239612,-500.0,9.897e-05,2]
[348847612,1736806239621,-500.0,9.897e-05,2]
[348847613,1736806239631,-500.0,9.897e-05,2]
[348847614,1736806239640,-500.0,9.897e-05,2]
[348847615,1736806239649,-500.0,9.897e-05,2]
[348847616,1736806239662,-500.0,9.897e-05,2]
[348847617,1736806239671,-500.0,9.897e-05,2]
[348847618,1736806239681,-603.62,9.897e-05,2]
[348847619,1736806239690,-500.0,9.897e-05,2]
[348847620,1736806239699,-500.0,9.897e-05,2]
[348847621,1736806239708,-500.0,9.897e-05,2]
[348847622,1736806239718,-500.0,9.897e-05,2]
[348847623,1736806239727,-500.0,9.897e-05,2]
[348847624,1736806239737,-500.0,9.897e-05,2]
[348847625,1736806239746,-500.0,9.897e-05,2]
[348847626,1736806239756,-500.0,9.897e-05,2]
[348847627,1736806239765,-500.0,9.897e-05,2]
[348847628,1736806239774,-500.0,9.897e-05,2]
[348847629,1736806239783,-501.99,9.897e-05,2]
[348847630,1736806239792,-500.0,9.897e-05,2]
[348847631,1736806239802,-500.0,9.897e-05,2]
[348847632,1736806239811,-500.0,9.897e-05,2]
[348847633,1736806239820,-716.2,9.897e-05,2]
[348847634,1736806239829,-500.0,9.897e-05,2]
[348847635,1736806239839,-500.0,9.897e-05,2]
[348847637,1736806239848,-278.52165877,9.897e-05,2]
[348847638,1736806239858,-902.85,9.897e-05,2]
[348847639,1736806239867,-500.0,9.897e-05,2]
[348847640,1736806239877,-500.0,9.897e-05,2]
[348847641,1736806239887,-500.0,9.897e-05,2]
[348847642,1736806239897,-500.0,9.897e-05,2]
[348847643,1736806239907,-500.0,9.897e-05,2]
[348847644,1736806239916,-500.0,9.897e-05,2]
[348847645,1736806239926,-500.0,9.897e-05,2]
[348847646,1736806239935,-500.0,9.897e-05,2]
[348847647,1736806239944,-500.0,9.897e-05,2]
[348847648,1736806239954,-500.0,9.897e-05,2]
[348847649,1736806239963,-500.0,9.897e-05,2]
[348847650,1736806239973,-500.0,9.897e-05,2]
[348847651,1736806239982,-976.27,9.897e-05,2]
[348847652,1736806239992,-500.0,9.897e-05,2]
[348847653,1736806240001,-500.0,9.897e-05,2]
[348847654,1736806240010,-500.0,9.897e-05,2]
[348847655,1736806240020,-500.0,9.897e-05,2]
[348847656,1736806240030,-500.0,9.897e-05,2]
[348847657,1736806240039,-500.0,9.897e-05,2]
[348847658,1736806240049,-500.0,9.897e-05,2]
[348847659,1736806240058,-533.63,9.897e-05,2]
[348847660,1736806240067,-500.0,9.897e-05,2]
[348847661,1736806240077,-500.0,9.897e-05,2]
[348847662,1736806240086,-500.0,9.897e-05,2]
[348847663,1736806240095,-500.0,9.897e-05,2]
[348847664,1736806240104,-500.0,9.897e-05,2]
[348847665,1736806240114,-500.0,9.897e-05,2]
[348847666,1736806240123,-500.0,9.897e-05,2]
[348847667,1736806240133,-500.0,9.897e-05,2]
[348847669,1736806240145,-500.0,9.897e-05,2]
[348847670,1736806240156,-500.0,9.897e-05,2]
[348847671,1736806240165,-500.0,9.897e-05,2]
[348847672,1736806240174,-500.0,9.897e-05,2]
[348847673,1736806240183,-500.0,9.897e-05,2]
[348847674,1736806240193,-500.0,9.897e-05,2]
[348847675,1736806240203,-500.0,9.897e-05,2]
[348847676,1736806240214,-500.0,9.897e-05,2]
[348847677,1736806240225,-500.0,9.897e-05,2]
[348847678,1736806240235,-921.62,9.897e-05,2]
[348847679,1736806240245,-500.0,9.897e-05,2]
[348847680,1736806240255,-500.0,9.897e-05,2]
[348847681,1736806240264,-500.0,9.897e-05,2]
[348847682,1736806240273,-500.0,9.897e-05,2]
[348847683,1736806240283,-500.0,9.897e-05,2]
[348847684,1736806240292,-500.0,9.897e-05,2]
[348847685,1736806240302,-500.0,9.897e-05,2]
[348847686,1736806240311,-500.0,9.897e-05,2]
[348847687,1736806240321,-500.0,9.897e-05,2]
[348847688,1736806240330,-500.0,9.897e-05,2]
[348847689,1736806240340,-500.0,9.897e-05,2]
[348847690,1736806240350,-500.0,9.897e-05,2]
[348847691,1736806240359,-500.0,9.897e-05,2]
[348847692,1736806240368,-500.0,9.897e-05,2]
[348847693,1736806240378,-500.0,9.897e-05,2]
[348847694,1736806240391,-500.0,9.897e-05,2]
[348847695,1736806240401,-529.91,9.897e-05,2]
[348847696,1736806240411,-500.0,9.897e-05,2]
[348847697,1736806240421,-500.0,9.897e-05,2]
[348847698,1736806240431,-500.0,9.897e-05,2]
[348847699,1736806240441,-504.44,9.897e-05,2]
[348847700,1736806240450,-500.0,9.897e-05,2]
[348847701,1736806240460,-500.0,9.897e-05,2]
[348847702,1736806240470,-500.0,9.897e-05,2]
[348847703,1736806240479,-500.0,9.897e-05,2]
[348847704,1736806240488,-500.0,9.897e-05,2]
[348847705,1736806240497,-500.0,9.897e-05,2]
[348847706,1736806240507,-500.0,9.897e-05,2]
[348847707,1736806240515,-500.0,9.897e-05,2]
[348847708,1736806240525,-516.93,9.897e-05,2]
[348847709,1736806240534,-500.0,9.897e-05,2]
[348847710,1736806240543,-500.0,9.897e-05,2]
[348847711,1736806240552,-500.0,9.897e-05,2]
[348847712,1736806240561,-500.0,9.897e-05,2]
[348847713,1736806240571,-500.0,9.897e-05,2]
[348847714,1736806240579,-500.0,9.897e-05,2]
[348847715,1736806240588,-500.0,9.897e-05,2]
[348847716,1736806240598,-500.0,9.897e-05,2]
[348847717,1736806240607,-500.0,9.897e-05,2]
[348847718,1736806240617,-500.0,9.897e-05,2]
[348847719,1736806240627,-500.0,9.897e-05,2]
[348847720,1736806240636,-604.35,9.897e-05,2]
[348847721,1736806240645,-500.0,9.897e-05,2]
[348847722,1736806240656,-500.0,9.897e-05,2]
[348847723,1736806240665,-624.56,9.897e-05,2]
[348847724,1736806240674,-500.0,9.897e-05,2]
[348847725,1736806240683,-500.0,9.897e-05,2]
[348847726,1736806240693,-500.0,9.897e-05,2]
[348847727,1736806240702,-500.0,9.897e-05,2]
[348847728,1736806240711,-500.0,9.897e-05,2]
[348847729,1736806240720,-500.0,9.897e-05,2]
[348847731,1736806240729,-1154.19,9.897e-05,2]
[348847732,1736806240739,-500.0,9.897e-05,2]
[348847733,1736806240748,-500.0,9.897e-05,2]
[348847734,1736806240757,-500.0,9.897e-05,2]
[348847735,1736806240766,-500.0,9.897e-05,2]
[348847736,1736806240775,-500.0,9.897e-05,2]
[348847737,1736806240784,-500.0,9.897e-05,2]
[348847738,1736806240794,-500.0,9.897e-05,2]
[348847739,1736806240803,-500.0,9.897e-05,2]
[348847740,1736806240812,-500.0,9.897e-05,2]
[348847741,1736806240821,-500.0,9.897e-05,2]
[348847742,1736806240830,-1422.56,9.897e-05,2]
[348847744,1736806240839,-500.0,9.897e-05,2]
[348847745,1736806240849,-1274.55,9.897e-05,2]
[348847746,1736806240858,-500.0,9.897e-05,2]
[348847747,1736806240867,-500.0,9.897e-05,2]
[348847748,1736806240876,-500.0,9.897e-05,2]
[348847749,1736806240885,-1031.2,9.897e-05,2]
[348847750,1736806240895,-1031.2,9.897e-05,2]
[348847751,1736806240904,-500.0,9.897e-05,2]
[348847752,1736806240913,-500.0,9.897e-05,2]
[348847753,1736806240922,-500.0,9.897e-05,2]
[348847754,1736806240932,-500.0,9.897e-05,2]
[348847756,1736806240941,-982.62,9.897e-05,2]
[348847757,1736806240950,-799.89,9.897e-05,2]
[348847759,1736806240960,-629.55,9.897e-05,2]
[348847760,1736806240969,-781.39,9.897e-05,2]
[348847761,1736806240979,-500.0,9.897e-05,2]
[348847762,1736806240988,-500.0,9.897e-05,2]
[348847763,1736806240997,-500.0,9.897e-05,2]
[348847764,1736806241006,-500.0,9.897e-05,2]
[348847765,1736806241015,-500.0,9.897e-05,2]
[348847766,1736806241025,-500.0,9.897e-05,2]
[348847767,1736806241034,-500.0,9.897e-05,2]
[348847768,1736806241043,-500.0,9.897e-05,2]
[348847769,1736806241052,-500.0,9.897e-05,2]
[348847770,1736806241062,-2179.17,9.897e-05,2]
[348847771,1736806241071,-500.0,9.897e-05,2]
[348847772,1736806241080,-500.0,9.897e-05,2]
[348847773,1736806241089,-500.0,9.897e-05,2]
[348847774,1736806241099,-1615.31,9.897e-05,2]
[348847775,1736806241108,-500.0,9.897e-05,2]
[348847776,1736806241117,-1087.21,9.897e-05,2]
[348847777,1736806241126,-690.29,9.897e-05,2]
[348847778,1736806241135,-500.0,9.897e-05,2]
[348847779,1736806241144,-500.0,9.897e-05,2]
[348847780,1736806241154,-2463.97,9.897e-05,2]
[348847781,1736806241164,-1605.97,9.897e-05,2]
[348847782,1736806241173,-500.0,9.897e-05,2]
[348847783,1736806241182,-500.0,9.897e-05,2]
[348847784,1736806241192,-2521.32,9.897e-05,2]
[348847785,1736806241201,-500.0,9.897e-05,2]
[348847786,1736806241210,-500.0,9.897e-05,2]
[348847787,1736806241219,-500.0,9.897e-05,2]
[348847788,1736806241229,-500.0,9.897e-05,2]
[348847789,1736806241238,-1001.64,9.897e-05,2]
[348847790,1736806241248,-500.0,9.897e-05,2]
[348847791,1736806241257,-537.95,9.897e-05,2]
[348847792,1736806241267,-543.97,9.897e-05,2]
[348847793,1736806241277,-500.0,9.897e-05,2]
[348847794,1736806241286,-621.77,9.897e-05,2]
[348847795,1736806241295,-500.0,9.897e-05,2]
[348847796,1736806241305,-4143.42,9.897e-05,2]
[348847797,1736806241314,-3723.5,9.897e-05,2]
[348847798,1736806241323,-500.0,9.897e-05,2]
[348847799,1736806241333,-1702.06,9.897e-05,2]
[348847800,1736806241343,-749.48,9.897e-05,2]
[348847801,1736806241352,-500.0,9.897e-05,2]
[348847802,1736806241361,-500.0,9.897e-05,2]
[348847803,1736806241371,-500.0,9.897e-05,2]
[348847804,1736806241381,-1693.39,9.897e-05,2]
[348847805,1736806241394,-500.0,9.897e-05,2]
[348847806,1736806241404,-500.0,9.898e-05,2]
[348847807,1736806241413,-500.0,9.898e-05,2]
[348847808,1736806241471,-1459.19,9.899e-05,2]
[348847809,1736806241481,-2079.7,9.899e-05,2]
[348847810,1736806241491,-1443.33,9.899e-05,2]
[348847811,1736806241500,-1965.16,9.899e-05,2]
[348847812,1736806241509,-3739.67,9.899e-05,2]
[348847813,1736806241519,-9990.02,9.899e-05,2]
[348847814,1736806241528,-1376.66,9.899e-05,2]
[348847815,1736806241538,-887.48,9.899e-05,2]
[348847816,1736806241547,-2081.77,9.899e-05,2]
[348847817,1736806241557,-500.0,9.899e-05,2]
[348847818,1736806241567,-729.95,9.899e-05,2]
[348847819,1736806241576,-2402.85,9.899e-05,2]
[348847820,1736806241586,-1462.16,9.899e-05,2]
[348847821,1736806241595,-1229.19,9.899e-05,2]
[348847822,1736806241604,-1603.92,9.899e-05,2]
[348847823,1736806241613,-500.0,9.899e-05,2]
[348847824,1736806241623,-500.0,9.899e-05,2]
[348847825,1736806241633,-1476.16,9.899e-05,2]
[348847826,1736806241642,-500.0,9.899e-05,2]
[348847827,1736806241652,-500.0,9.899e-05,2]
[348847828,1736806241661,-898.9,9.899e-05,2]
[348847829,1736806241671,-1000.0,9.899e-05,2]
[348847830,1736806241680,-947.92,9.899e-05,2]
[348847831,1736806241689,-1602.17,9.899e-05,2]
[348847832,1736806241699,-500.0,9.899e-05,2]
[348847833,1736806241708,-2419.85,9.899e-05,2]
[348847834,1736806241717,-798.19,9.899e-05,2]
[348847835,1736806241727,-2059.93,9.899e-05,2]
[348847836,1736806241736,-892.28,9.899e-05,2]
[348847837,1736806241745,-769.57,9.899e-05,2]
[348847838,1736806241754,-500.0,9.899e-05,2]
[348847839,1736806241763,-1031.1,9.899e-05,2]
[348847840,1736806241773,-734.73,9.899e-05,2]
[348847841,1736806241782,-1784.71,9.899e-05,2]
[348847842,1736806241791,-159.7125978,9.9e-05,2]
[348847843,1736806241800,-159.71259776,9.905e-05,2]
[348847844,1736806241808,-159.71259776,9.913e-05,2]
[348847845,1736806241817,-159.71259776,9.922e-05,2]
[348847846,1736806241826,-159.71259776,9.931e-05,2]
[348847847,1736806241835,-479.14,9.932e-05,2]
[348847848,1736806241844,-159.71259776,9.939e-05,2]
[348847849,1736806241853,-829.252687,9.941e-05,2]
[348847850,1736806241862,-330.0,9.945e-05,2]
[348847851,1736806241871,-17540.0,9.945e-05,2]
[348847852,1736806241880,-159.71259776,9.948e-05,2]
[348847853,1736806241890,-159.71259776,9.957e-05,2]
[348847854,1736806241899,-159.71259776,9.965e-05,2]
[348847855,1736806241909,-500.0,9.973e-05,2]
[348847856,1736806241918,-500.0,9.973e-05,2]
[348847857,1736806241927,-500.0,9.973e-05,2]
[348847858,1736806241937,-500.0,9.973e-05,2]
[348847859,1736806241946,-150.86779271,9.973e-05,2]
[348847860,1736806241956,-159.85952548,9.973e-05,2]
[348847861,1736806241965,-151.86691715,9.973e-05,2]
[348847862,1736806241974,-151.86691715,9.973e-05,2]
[348847863,1736806241983,-151.86968193,9.973e-05,2]
[348847864,1736806241991,-500.0,9.973e-05,2]
[348847865,1736806242000,-500.0,9.973e-05,2]
[348847866,1736806242009,-567.26443215,9.973e-05,2]
[348847867,1736806242018,-2761.23,9.974e-05,2]
[348847868,1736806242027,-696.68,9.974e-05,2]
[348847869,1736806242037,-2516.58,9.974e-05,2]
[348847870,1736806242047,-500.49843299,9.974e-05,2]
[348847871,1736806242057,-604.4,9.974e-05,2]
[348847872,1736806242067,-500.0,9.974e-05,2]
[348847873,1736806242076,-670.62,9.974e-05,2]
[348847874,1736806242085,-159.71259776,9.974e-05,2]
[348847875,1736806242094,-1474.0,9.976e-05,2]
[348847876,1736806242102,-1533.22927706,9.98e-05,2]
[348847877,1736806242111,-159.71259776,9.983e-05,2]
[348847878,1736806242120,-1000.0,9.986e-05,2]
[348847879,1736806242129,-500.0,9.992e-05,2]
[348847880,1736806242138,-12598.0436431,9.992e-05,2]
[348847881,1736806242147,-5193.1122879,9.992e-05,2]
[348847882,1736806242156,-321.389,9.995e-05,2]
[348847883,1736806242166,-6080.433,9.996e-05,2]
[348847884,1736806242175,-151.0,9.997e-05,2]
[348847885,1736806242184,-191.03776272,9.999e-05,2]
[348847886,1736806242193,-716154.58162487,0.0001,2]
[348847887,1736806242504,-66977.91807776,0.0001,2]
[348847888,1736806242515,-43247.23550204,0.0001,2]
[348847889,1736806242526,-7704.2232308,0.0001,2]
[348847908,1736806243282,-500.0,9.895e-05,2]
[348847909,1736806243292,-500.0,9.896e-05,2]
[348847910,1736806243302,-500.0,9.896e-05,2]
[348847911,1736806243311,-1287.5,9.898e-05,2]
[348847912,1736806243321,-500.0,9.899e-05,2]
[348847913,1736806243330,-159.71259776,9.991e-05,2]
[348847914,1736806243340,-1841.79138727,0.0001,2]
[348847915,1736806243352,-8169.2,0.0001,2]
[348847916,1736806243370,-2190.0,0.0001,2]
[348847917,1736806243383,-23034.45928552,0.0001,2]
[348847918,1736806243397,-971075.7362984,0.0001,2]
[348847919,1736806243407,-4973245.92073873,0.0001,2]
[348847926,1736806243778,-500.0,9.896e-05,2]
[348847927,1736806243787,-2645.00487677,0.0001,2]
[348847928,1736806243798,-426.67551906,0.0001,2]
[348847929,1736806243833,-500.0,9.896e-05,2]
[348847930,1736806243843,-30664.0,0.0001,2]
[348847931,1736806243854,-74990.99520013,0.0001,2]
[348847932,1736806244158,-3690.15440453,0.0001,2]
[348847933,1736806244170,-477.24801,0.0001,2]
[348847934,1736806244182,-482.15821,0.0001,2]
[348847935,1736806244194,-558.900001,0.0001,2]
[348847936,1736806244215,-13619.96119712,0.0001,2]
[348847937,1736806244226,-471.22480062,0.0001,2]
[348847938,1736806246264,-317.61014283,9.895e-05,2]
[348847939,1736806246277,-182.38985717,9.895e-05,2]
[348847940,1736806246287,-774.92,9.895e-05,2]
[348847941,1736806246297,-500.0,9.896e-05,2]
[348847942,1736806246306,-1233.0,0.0001,2]
[348847943,1736806246316,-631.10084376,0.0001,2]
[348847944,1736806246328,-261.0699264,0.0001,2]
[348847945,1736806246340,-560.54907715,0.0001,2]
[348847946,1736806246467,-3469.75000198,0.0001,2]
[348847947,1736806404552,961.29,8.219e-05,2]
[348847949,1736806746790,3976.45,0.00018,30]
[348847950,1736807107193,-165.25,8.758e-05,2]
[348847951,1736807132871,-355.75,8.726e-05,2]
[348847955,1736807163085,203.34687929,0.00023,120]
[348847965,1736807232706,837.40721148,0.0002,120]
[348847971,1736807259462,938.29,8.219e-05,2]
[348847972,1736807268871,250.0,8.551e-05,2]
[348847973,1736807290106,954.34348474,0.00023,120]
[348847980,1736807317626,978.6104595,0.00023,120]
[348847990,1736807324202,800.0,0.00021,120]
[348847991,1736807324603,152.84340297,0.0002,120]
[348847992,1736807324636,195.78,0.0002,120]
[348847993,1736807342240,-609.16,8.726e-05,2]
[348847994,1736807342261,-337.79611595,8.758e-05,2]
[348847995,1736807342282,-200.0,8.758e-05,2]
[348847996,1736807342304,-1000.0,8.835e-05,2]
[348847997,1736807342326,-1500.0,8.845e-05,2]
[348847998,1736807342348,-207.73630972,8.845e-05,2]
[348847999,1736807342369,-212.52,8.886e-05,2]
[348848000,1736807342391,-1614.29,8.906e-05,2]
[348848001,1736807342416,-1053.79757433,8.95e-05,2]
[348848002,1736807346553,-10000.0,8.95e-05,2]
[348848011,1736807350255,-10000.0,8.95e-05,2]
[348848026,1736807355262,-2846.20242567,8.95e-05,2]
[348848027,1736807355285,-413.05,8.965e-05,2]
[348848028,1736807355308,-6740.74757433,9.015e-05,2]
[348848029,1736807359370,-9275.38673371,9.015e-05,2]
[348848030,1736807359397,-250.0,9.015e-05,2]
[348848031,1736807359421,-474.61326629,9.118e-05,2]
[348848032,1736807365084,-1237.90673371,9.118e-05,2]
[348848033,1736807365108,-150.0,9.205e-05,2]
[348848034,1736807365131,-150.0,9.205e-05,2]
[348848035,1736807365154,-250.0,9.209e-05,2]
[348848036,1736807365177,-166.55,9.308e-05,2]
[348848037,1736807365200,-150.0,9.31e-05,2]
[348848038,1736807365223,-219.815,9.5e-05,2]
[348848039,1736807365244,-629.10260946,9.502e-05,2]
[348848040,1736807365269,-1400.0,9.6e-05,3]
[348848041,1736807365293,-2900.0,9.7e-05,3]
[348848042,1736807365317,-1000.0,9.796e-05,2]
[348848043,1736807365340,-1233.8376,9.796e-05,2]
[348848044,1736807365363,-512.78805683,9.796e-05,2]
[348848045,1736807369767,-1254.96454317,9.796e-05,2]
[348848046,1736807369789,-5721.7968,9.796e-05,2]
[348848047,1736807369812,-3023.23865683,9.796e-05,2]
[348848050,1736807374405,-1495.54484317,9.796e-05,2]
[348848051,1736807374430,-500.0,9.797e-05,2]
[348848052,1736807374452,-205.0,9.8e-05,2]
[348848053,1736807374476,-4400.0,9.8e-05,3]
[348848054,1736807374500,-964.91,9.817e-05,2]
[348848055,1736807374522,-1039.57646378,9.877e-05,2]
[348848056,1736807374545,-1269.6446323,9.894e-05,2]
[348848057,1736807374569,-125.32406075,9.895e-05,2]
[348848058,1736807378412,-445.67016425,9.895e-05,2]
[348848059,1736807378439,-2616.96,9.895e-05,2]
[348848060,1736807378463,-544.692444,9.895e-05,2]
[348848061,1736807378489,-810.44,9.895e-05,2]
[348848062,1736807378516,-500.0,9.895e-05,2]
[348848063,1736807378539,-500.0,9.895e-05,2]
[348848064,1736807378563,-2844.84,9.895e-05,2]
[348848065,1736807378587,-151.996532,9.895e-05,2]
[348848066,1736807378609,-153.603199,9.895e-05,2]
[348848067,1736807378632,-151.996528,9.895e-05,2]
[348848068,1736807378657,-961.85,9.895e-05,2]
[348848069,1736807378681,-153.603194,9.895e-05,2]
[348848070,1736807378704,-151.996528,9.895e-05,2]
[348848071,1736807378728,-12.35141075,9.895e-05,2]
[348848072,1736807382835,-487.64858925,9.895e-05,2]
[348848073,1736807382859,-153.603193,9.895e-05,2]
[348848074,1736807383143,-151.996528,9.895e-05,2]
[348848075,1736807383170,-153.603193,9.895e-05,2]
[348848076,1736807383194,-1413.53,9.895e-05,2]
[348848077,1736807383217,-500.0,9.895e-05,2]
[348848078,1736807383240,-151.996528,9.895e-05,2]
[348848079,1736807383264,-500.0,9.895e-05,2]
[348848080,1736807383288,-1301.46,9.895e-05,2]
[348848081,1736807383311,-500.0,9.895e-05,2]
[348848082,1736807383334,-661.68,9.895e-05,2]
[348848083,1736807383358,-153.603193,9.895e-05,2]
[348848084,1736807383381,-500.0,9.895e-05,2]
[348848085,1736807383404,-500.0,9.895e-05,2]
[348848086,1736807383427,-500.0,9.895e-05,2]
[348848087,1736807383452,-500.0,9.895e-05,2]
[348848088,1736807383476,-1597.64,9.895e-05,2]
[348848089,1736807383513,-273.23877575,9.895e-05,2]
[348848090,1736807389379,-656.89122425,9.895e-05,2]
[348848091,1736807389408,-500.0,9.895e-05,2]
[348848092,1736807389437,-500.0,9.895e-05,2]